[Event "Titled Tuesday Blitz February 15 Early 2022"]
[White "Gulatz, Maurice"]
[Black "Agasarov, Benik"]
[WhiteFideId "24642746"]
[BlackFideId "13314823"]
[WhiteElo "2150"]
[BlackElo "2598"]
[Result "0-1"]
[Round "07"]
[TimeControl "180+1"]
[Date "2022.02.15"]
[WhiteClock "0:00:21"]
[BlackClock "0:00:12"]

1. d4 {[%clk 0:03:00]}  Nf6 {[%clk 0:02:55]} 2. c4 {[%clk 0:03:00]}  e6 {[%clk 0:02:56]} 3. Nf3 {[%clk 0:03:00]}  d5 {[%clk 0:02:48]} 4. g3 {[%clk 0:02:59]}  Be7 {[%clk 0:02:44]} 5. Bg2 {[%clk 0:03:00]}  O-O {[%clk 0:02:44]} 6. O-O {[%clk 0:03:00]}  dxc4 {[%clk 0:02:45]} 7. Qc2 {[%clk 0:03:00]}  a6 {[%clk 0:02:44]} 8. a4 {[%clk 0:03:00]}  Bd7 {[%clk 0:02:43]} 9. Rd1 {[%clk 0:02:58]}  Bc6 {[%clk 0:02:40]} 10. Nc3 {[%clk 0:02:58]}  Nbd7 {[%clk 0:02:35]} 11. e4 {[%clk 0:02:58]}  b5 {[%clk 0:02:30]} 12. d5 {[%clk 0:02:43]}  exd5 {[%clk 0:02:26]} 13. exd5 {[%clk 0:02:43]}  Bb7 {[%clk 0:02:25]} 14. axb5 {[%clk 0:02:38]}  axb5 {[%clk 0:02:25]} 15. Rxa8 {[%clk 0:02:38]}  Qxa8 {[%clk 0:02:24]} 16. Nxb5 {[%clk 0:02:37]}  Nxd5 {[%clk 0:02:22]} 17. Qxc4 {[%clk 0:02:13]}  N7b6 {[%clk 0:02:03]} 18. Qc2 {[%clk 0:02:08]}  Nb4 {[%clk 0:01:59]} 19. Qe2 {[%clk 0:02:02]}  Bd8 {[%clk 0:01:49]} 20. Be3 {[%clk 0:01:51]}  Qa4 {[%clk 0:01:40]} 21. Nc3 {[%clk 0:01:35]}  Qa6 {[%clk 0:01:34]} 22. Bc5 {[%clk 0:01:30]}  Qxe2 {[%clk 0:01:30]} 23. Nxe2 {[%clk 0:01:31]}  Re8 {[%clk 0:00:56]} 24. Bxb4 {[%clk 0:01:24]}  Bf6 {[%clk 0:00:55]} 25. Nc3 {[%clk 0:01:19]}  h5 {[%clk 0:00:50]} 26. Nd4 {[%clk 0:01:12]}  Bxg2 {[%clk 0:00:48]} 27. Kxg2 {[%clk 0:01:13]}  Nc4 {[%clk 0:00:42]} 28. b3 {[%clk 0:01:02]}  Ne5 {[%clk 0:00:34]} 29. Nd5 {[%clk 0:00:59]}  Bd8 {[%clk 0:00:31]} 30. Re1 {[%clk 0:00:53]}  Bf6 {[%clk 0:00:15]} 31. Nc6 {[%clk 0:00:43]}  Re6 {[%clk 0:00:10]} 32. Nxf6+ {[%clk 0:00:41]}  gxf6 {[%clk 0:00:10]} 33. Nxe5 {[%clk 0:00:38]}  fxe5 {[%clk 0:00:11]} 34. Bc5 {[%clk 0:00:34]}  f6 {[%clk 0:00:10]} 35. b4 {[%clk 0:00:34]}  Kf7 {[%clk 0:00:10]} 36. Kf3 {[%clk 0:00:35]}  f5 {[%clk 0:00:10]} 37. Ke3 {[%clk 0:00:34]}  Ra6 {[%clk 0:00:09]} 38. Rd1 {[%clk 0:00:33]}  Ke6 {[%clk 0:00:10]} 39. Rd2 {[%clk 0:00:32]}  Ra3+ {[%clk 0:00:10]} 40. Ke2 {[%clk 0:00:32]}  e4 {[%clk 0:00:08]} 41. Be3 {[%clk 0:00:27]}  Rb3 {[%clk 0:00:07]} 42. Rc2 {[%clk 0:00:27]}  Rxb4 {[%clk 0:00:07]} 43. Rxc7 {[%clk 0:00:27]}  Rb2+ {[%clk 0:00:07]} 44. Rc2 {[%clk 0:00:28]}  Rxc2+ {[%clk 0:00:07]} 45. Kf1 {[%clk 0:00:25]}  h4 {[%clk 0:00:07]} 46. gxh4 {[%clk 0:00:24]}  Kf6 {[%clk 0:00:07]} 47. Bf4 {[%clk 0:00:23]}  Kg6 {[%clk 0:00:08]} 48. Kg2 {[%clk 0:00:21]}  Kh5 {[%clk 0:00:08]} 49. Kg3 {[%clk 0:00:22]}  Rc3+ {[%clk 0:00:09]} 50. Be3 {[%clk 0:00:22]}  Rc6 {[%clk 0:00:07]} 51. Kf4 {[%clk 0:00:22]}  Rf6 {[%clk 0:00:08]} 52. Ke5 {[%clk 0:00:22]}  Rf8 {[%clk 0:00:07]} 53. Bg5 {[%clk 0:00:22]}  Kg4 {[%clk 0:00:07]} 54. Kd4 {[%clk 0:00:19]}  Re8 {[%clk 0:00:07]} 55. Ke3 {[%clk 0:00:18]}  Ra8 {[%clk 0:00:07]} 56. Kd4 {[%clk 0:00:18]}  Ra3 {[%clk 0:00:08]} 57. Be3 {[%clk 0:00:17]}  Kxh4 {[%clk 0:00:08]} 58. Ke5 {[%clk 0:00:17]}  Ra5+ {[%clk 0:00:07]} 59. Kf4 {[%clk 0:00:17]}  Kh5 {[%clk 0:00:07]} 60. Bc1 {[%clk 0:00:18]}  Kg6 {[%clk 0:00:08]} 61. Be3 {[%clk 0:00:18]}  Rd5 {[%clk 0:00:08]} 62. h4 {[%clk 0:00:19]}  Rb5 {[%clk 0:00:08]} 63. Kg3 {[%clk 0:00:19]}  Kh5 {[%clk 0:00:08]} 64. Kf4 {[%clk 0:00:20]}  Kxh4 {[%clk 0:00:08]} 65. Bd2 {[%clk 0:00:20]}  Kh5 {[%clk 0:00:09]} 66. Be3 {[%clk 0:00:20]}  Kg6 {[%clk 0:00:10]} 67. Bd2 {[%clk 0:00:21]}  Rb2 {[%clk 0:00:10]} 68. Be3 {[%clk 0:00:21]}  Re2 {[%clk 0:00:11]} 69. Kg3 {[%clk 0:00:19]}  Re1 {[%clk 0:00:11]} 70. Kf4 {[%clk 0:00:19]}  Rg1 {[%clk 0:00:11]} 71. Bd4 {[%clk 0:00:20]}  Rg4+ {[%clk 0:00:11]} 72. Ke5 {[%clk 0:00:20]}  Rg2 {[%clk 0:00:11]} 73. Be3 {[%clk 0:00:21]}  Rh2 {[%clk 0:00:09]} 74. Kf4 {[%clk 0:00:21]}  Rh5 {[%clk 0:00:09]} 75. Ke5 {[%clk 0:00:22]}  Rh4 {[%clk 0:00:09]} 76. Bf4 {[%clk 0:00:21]}  Rg4 {[%clk 0:00:10]} 77. Be3 {[%clk 0:00:21]}  Rg2 {[%clk 0:00:10]} 78. Kf4 {[%clk 0:00:21]}  Kf6 {[%clk 0:00:11]} 79. Bd4+ {[%clk 0:00:21]}  Ke6 {[%clk 0:00:11]} 80. Be3 {[%clk 0:00:21]}  Rg4# {[%clk 0:00:12]} 0-1


[Site "https://www.chess.com"]

[Event "Titled Tuesday Blitz February 15 Early 2022"]
[White "Hansen, Eric"]
[Black "Safarli, Eltaj"]
[WhiteFideId "2606771"]
[BlackFideId "13402129"]
[WhiteElo "2568"]
[BlackElo "2634"]
[Result "1/2-1/2"]
[Round "07"]
[TimeControl "180+1"]
[Date "2022.02.15"]
[WhiteClock "0:00:04"]
[BlackClock "0:00:04"]

1. e4 {[%clk 0:03:00]}  c5 {[%clk 0:02:57]} 2. Nf3 {[%clk 0:03:00]}  Nc6 {[%clk 0:02:55]} 3. Bb5 {[%clk 0:02:59]}  g6 {[%clk 0:02:53]} 4. Bxc6 {[%clk 0:02:51]}  dxc6 {[%clk 0:02:54]} 5. h3 {[%clk 0:02:50]}  Bg7 {[%clk 0:02:52]} 6. O-O {[%clk 0:02:50]}  Nf6 {[%clk 0:02:52]} 7. d3 {[%clk 0:02:49]}  Nd7 {[%clk 0:02:48]} 8. Nc3 {[%clk 0:02:48]}  e5 {[%clk 0:02:42]} 9. a3 {[%clk 0:02:43]}  O-O {[%clk 0:02:34]} 10. b4 {[%clk 0:02:41]}  Qe7 {[%clk 0:02:19]} 11. bxc5 {[%clk 0:02:35]}  Nxc5 {[%clk 0:02:18]} 12. a4 {[%clk 0:02:34]}  Rd8 {[%clk 0:02:10]} 13. Ba3 {[%clk 0:02:34]}  Bf8 {[%clk 0:02:08]} 14. Qc1 {[%clk 0:02:32]}  f6 {[%clk 0:01:48]} 15. Qe3 {[%clk 0:02:29]}  b6 {[%clk 0:01:47]} 16. a5 {[%clk 0:02:29]}  Qc7 {[%clk 0:01:41]} 17. Rfb1 {[%clk 0:02:27]}  Be6 {[%clk 0:01:30]} 18. Ne2 {[%clk 0:02:15]}  Bf7 {[%clk 0:01:27]} 19. Ng3 {[%clk 0:02:08]}  Rab8 {[%clk 0:01:22]} 20. Nh2 {[%clk 0:02:06]}  h5 {[%clk 0:01:17]} 21. Nf3 {[%clk 0:02:06]}  Kg7 {[%clk 0:01:12]} 22. d4 {[%clk 0:02:00]}  exd4 {[%clk 0:01:10]} 23. Nxd4 {[%clk 0:02:00]}  Ne6 {[%clk 0:00:46]} 24. axb6 {[%clk 0:01:45]}  axb6 {[%clk 0:00:46]} 25. Bxf8+ {[%clk 0:01:32]}  Rxf8 {[%clk 0:00:47]} 26. Ra6 {[%clk 0:00:44]}  Nxd4 {[%clk 0:00:27]} 27. Qxd4 {[%clk 0:00:44]}  c5 {[%clk 0:00:27]} 28. Qb2 {[%clk 0:00:43]}  Rfd8 {[%clk 0:00:25]} 29. h4 {[%clk 0:00:26]}  Rd2 {[%clk 0:00:19]} 30. Qc3 {[%clk 0:00:21]}  Qf4 {[%clk 0:00:14]} 31. Qf3 {[%clk 0:00:14]}  Qxf3 {[%clk 0:00:13]} 32. gxf3 {[%clk 0:00:15]}  Rxc2 {[%clk 0:00:14]} 33. Rbxb6 {[%clk 0:00:15]}  Rxb6 {[%clk 0:00:15]} 34. Rxb6 {[%clk 0:00:16]}  c4 {[%clk 0:00:14]} 35. Rb7 {[%clk 0:00:15]}  c3 {[%clk 0:00:14]} 36. Rc7 {[%clk 0:00:16]}  Rc1+ {[%clk 0:00:14]} 37. Kg2 {[%clk 0:00:15]}  Rc2 {[%clk 0:00:11]} 38. Nf1 {[%clk 0:00:09]}  Kf8 {[%clk 0:00:10]} 39. Rc8+ {[%clk 0:00:08]}  Ke7 {[%clk 0:00:10]} 40. Rc7+ {[%clk 0:00:09]}  Ke8 {[%clk 0:00:11]} 41. Ne3 {[%clk 0:00:08]}  Rc1 {[%clk 0:00:11]} 42. Rc6 {[%clk 0:00:08]}  Ke7 {[%clk 0:00:05]} 43. Rc7+ {[%clk 0:00:08]}  Ke8 {[%clk 0:00:05]} 44. f4 {[%clk 0:00:05]}  Bb3 {[%clk 0:00:05]} 45. Nd5 {[%clk 0:00:03]}  Bxd5 {[%clk 0:00:04]} 46. exd5 {[%clk 0:00:03]}  c2 {[%clk 0:00:05]} 47. Kf3 {[%clk 0:00:02]}  Rd1 {[%clk 0:00:04]} 48. Rxc2 {[%clk 0:00:02]}  Rxd5 {[%clk 0:00:04]} 49. Rc6 {[%clk 0:00:02]}  Ke7 {[%clk 0:00:04]} 50. Kg3 {[%clk 0:00:01]}  Rd6 {[%clk 0:00:04]} 51. Rc7+ {[%clk 0:00:02]}  Ke6 {[%clk 0:00:04]} 52. Rc5 {[%clk 0:00:02]}  Rd3+ {[%clk 0:00:04]} 53. f3 {[%clk 0:00:03]}  Rd6 {[%clk 0:00:04]} 54. f5+ {[%clk 0:00:03]}  gxf5 {[%clk 0:00:05]} 55. Kf4 {[%clk 0:00:04]}  Rd4+ {[%clk 0:00:06]} 56. Kg3 {[%clk 0:00:04]}  Rd5 {[%clk 0:00:06]} 57. Rc6+ {[%clk 0:00:04]}  Ke5 {[%clk 0:00:06]} 58. f4+ {[%clk 0:00:04]}  Ke4 {[%clk 0:00:04]} 59. Re6+ {[%clk 0:00:05]}  Kd3 {[%clk 0:00:04]} 60. Rxf6 {[%clk 0:00:05]}  Ra5 {[%clk 0:00:04]} 61. Kf3 {[%clk 0:00:05]}  Kd4 {[%clk 0:00:04]} 62. Re6 {[%clk 0:00:03]}  Ra3+ {[%clk 0:00:03]} 63. Kf2 {[%clk 0:00:03]}  Ra2+ {[%clk 0:00:03]} 64. Kf3 {[%clk 0:00:03]}  Ra3+ {[%clk 0:00:04]} 65. Kf2 {[%clk 0:00:04]}  Ra2+ {[%clk 0:00:04]} 66. Kf3 {[%clk 0:00:04]}  Ra3+ {[%clk 0:00:04]} 1/2-1/2


[Site "https://www.chess.com"]

[Event "Titled Tuesday Blitz February 15 Early 2022"]
[White "Harish, Neeraj"]
[Black "Krstulovic, Alex"]
[WhiteFideId "30958130"]
[BlackFideId "760056"]
[WhiteElo "1545"]
[BlackElo "2193"]
[Result "0-1"]
[Round "07"]
[TimeControl "180+1"]
[Date "2022.02.15"]
[WhiteClock "0:01:07"]
[BlackClock "0:01:43"]

1. e4 {[%clk 0:03:00]}  c5 {[%clk 0:02:59]} 2. Nf3 {[%clk 0:03:00]}  e6 {[%clk 0:02:58]} 3. d4 {[%clk 0:03:00]}  cxd4 {[%clk 0:02:58]} 4. Nxd4 {[%clk 0:03:01]}  Nf6 {[%clk 0:02:57]} 5. Nc3 {[%clk 0:02:59]}  Nc6 {[%clk 0:02:57]} 6. Ndb5 {[%clk 0:02:58]}  Bc5 {[%clk 0:02:56]} 7. Nd6+ {[%clk 0:02:56]}  Ke7 {[%clk 0:02:53]} 8. Bf4 {[%clk 0:02:54]}  e5 {[%clk 0:02:51]} 9. Nf5+ {[%clk 0:02:54]}  Kf8 {[%clk 0:02:51]} 10. Bg5 {[%clk 0:02:44]}  d6 {[%clk 0:02:49]} 11. Ne3 {[%clk 0:02:39]}  Be6 {[%clk 0:02:36]} 12. Ncd5 {[%clk 0:02:26]}  Qa5+ {[%clk 0:02:32]} 13. c3 {[%clk 0:02:24]}  Nxe4 {[%clk 0:02:23]} 14. b4 {[%clk 0:02:01]}  Nxb4 {[%clk 0:02:10]} 15. Nc4 {[%clk 0:01:26]}  Bxf2+ {[%clk 0:01:48]} 16. Ke2 {[%clk 0:01:19]}  Qxd5 {[%clk 0:01:45]} 17. Qxd5 {[%clk 0:01:08]}  Bxd5 {[%clk 0:01:46]} 18. cxb4 {[%clk 0:01:08]}  Bxc4+ {[%clk 0:01:45]} 19. Kf3 {[%clk 0:01:08]}  Nxg5+ {[%clk 0:01:45]} 20. Kxf2 {[%clk 0:01:07]}  Bxf1 {[%clk 0:01:45]} 21. Rhxf1 {[%clk 0:01:07]}  Rc8 {[%clk 0:01:43]} 0-1


[Site "https://www.chess.com"]

[Event "Titled Tuesday Blitz February 15 Early 2022"]
[White "Jaferian, Koosha"]
[Black "Arngrimsson, Dagur"]
[WhiteFideId "12507440"]
[BlackFideId "2301288"]
[WhiteElo "2027"]
[BlackElo "2286"]
[Result "1-0"]
[Round "07"]
[TimeControl "180+1"]
[Date "2022.02.15"]
[WhiteClock "0:00:42"]
[BlackClock "0:00:12"]

1. Nf3 {[%clk 0:03:00]}  Nf6 {[%clk 0:02:52]} 2. b3 {[%clk 0:03:01]}  g6 {[%clk 0:02:52]} 3. Bb2 {[%clk 0:03:01]}  Bg7 {[%clk 0:02:52]} 4. g3 {[%clk 0:03:01]}  O-O {[%clk 0:02:53]} 5. Bg2 {[%clk 0:03:02]}  d5 {[%clk 0:02:53]} 6. c4 {[%clk 0:03:02]}  b6 {[%clk 0:02:52]} 7. O-O {[%clk 0:03:01]}  Bb7 {[%clk 0:02:52]} 8. cxd5 {[%clk 0:03:01]}  Nxd5 {[%clk 0:02:50]} 9. Bxg7 {[%clk 0:03:01]}  Kxg7 {[%clk 0:02:50]} 10. d4 {[%clk 0:03:01]}  Nd7 {[%clk 0:02:50]} 11. Nbd2 {[%clk 0:02:57]}  c5 {[%clk 0:02:49]} 12. e4 {[%clk 0:02:53]}  Nc3 {[%clk 0:02:50]} 13. Qc2 {[%clk 0:02:50]}  Ne2+ {[%clk 0:02:48]} 14. Kh1 {[%clk 0:02:48]}  Nxd4 {[%clk 0:02:49]} 15. Qb2 {[%clk 0:02:41]}  Nf6 {[%clk 0:02:45]} 16. e5 {[%clk 0:02:37]}  Ne8 {[%clk 0:01:31]} 17. Rad1 {[%clk 0:02:20]}  Nc7 {[%clk 0:01:30]} 18. Nxd4 {[%clk 0:02:08]}  Bxg2+ {[%clk 0:01:29]} 19. Kxg2 {[%clk 0:02:08]}  Qxd4 {[%clk 0:01:26]} 20. Qxd4 {[%clk 0:02:06]}  cxd4 {[%clk 0:01:27]} 21. Nf3 {[%clk 0:02:07]}  Nb5 {[%clk 0:01:20]} 22. Nxd4 {[%clk 0:02:01]}  Nc3 {[%clk 0:01:20]} 23. Rd2 {[%clk 0:01:57]}  Rfd8 {[%clk 0:01:20]} 24. Rc1 {[%clk 0:01:49]}  Rxd4 {[%clk 0:01:20]} 25. Rxd4 {[%clk 0:01:47]}  Ne2 {[%clk 0:01:20]} 26. Rcd1 {[%clk 0:01:40]}  Nxd4 {[%clk 0:01:20]} 27. Rxd4 {[%clk 0:01:40]}  a5 {[%clk 0:01:15]} 28. Rd7 {[%clk 0:01:40]}  e6 {[%clk 0:01:02]} 29. Rb7 {[%clk 0:01:40]}  Rc8 {[%clk 0:00:47]} 30. Rxb6 {[%clk 0:01:38]}  Rc2 {[%clk 0:00:48]} 31. a4 {[%clk 0:01:34]}  g5 {[%clk 0:00:47]} 32. g4 {[%clk 0:01:29]}  Rc3 {[%clk 0:00:37]} 33. Rb5 {[%clk 0:01:25]}  Kg6 {[%clk 0:00:36]} 34. Rxa5 {[%clk 0:01:11]}  Rxb3 {[%clk 0:00:36]} 35. Rb5 {[%clk 0:01:11]}  Ra3 {[%clk 0:00:36]} 36. a5 {[%clk 0:01:12]}  h5 {[%clk 0:00:33]} 37. h3 {[%clk 0:01:11]}  hxg4 {[%clk 0:00:26]} 38. hxg4 {[%clk 0:01:12]}  f5 {[%clk 0:00:23]} 39. exf6 {[%clk 0:01:10]}  Kxf6 {[%clk 0:00:24]} 40. Rc5 {[%clk 0:01:08]}  e5 {[%clk 0:00:20]} 41. Rc6+ {[%clk 0:01:06]}  Ke7 {[%clk 0:00:20]} 42. a6 {[%clk 0:01:06]}  Kd7 {[%clk 0:00:20]} 43. Rg6 {[%clk 0:01:03]}  e4 {[%clk 0:00:21]} 44. a7 {[%clk 0:00:57]}  Kc7 {[%clk 0:00:16]} 45. Rxg5 {[%clk 0:00:56]}  Kb7 {[%clk 0:00:14]} 46. Rg7+ {[%clk 0:00:56]}  Ka8 {[%clk 0:00:14]} 47. Re7 {[%clk 0:00:54]}  Ra4 {[%clk 0:00:14]} 48. g5 {[%clk 0:00:54]}  e3 {[%clk 0:00:14]} 49. Rxe3 {[%clk 0:00:43]}  Kxa7 {[%clk 0:00:14]} 50. Rg3 {[%clk 0:00:44]}  Rf4 {[%clk 0:00:11]} 51. g6 {[%clk 0:00:44]}  Rf8 {[%clk 0:00:11]} 52. g7 {[%clk 0:00:45]}  Rg8 {[%clk 0:00:12]} 53. f4 {[%clk 0:00:41]}  Kb8 {[%clk 0:00:11]} 54. f5 {[%clk 0:00:42]}  Kc7 {[%clk 0:00:12]} 55. f6 {[%clk 0:00:42]} 1-0


[Site "https://www.chess.com"]

[Event "Titled Tuesday Blitz February 15 Early 2022"]
[White "Jain Kashish Manoj"]
[Black "Kostiukov, Alexandr"]
[WhiteFideId "35081098"]
[BlackFideId "14108100"]
[WhiteElo "1681"]
[BlackElo "2202"]
[Result "1-0"]
[Round "07"]
[TimeControl "180+1"]
[Date "2022.02.15"]
[WhiteClock "0:00:05"]
[BlackClock "0:00:01"]

1. d4 {[%clk 0:03:00]}  g6 {[%clk 0:02:53]} 2. Nf3 {[%clk 0:02:58]}  Bg7 {[%clk 0:02:53]} 3. e4 {[%clk 0:02:57]}  c5 {[%clk 0:02:52]} 4. c3 {[%clk 0:02:55]}  cxd4 {[%clk 0:02:52]} 5. cxd4 {[%clk 0:02:55]}  d5 {[%clk 0:02:53]} 6. e5 {[%clk 0:02:54]}  Nc6 {[%clk 0:02:52]} 7. h3 {[%clk 0:02:52]}  Nh6 {[%clk 0:02:51]} 8. Nc3 {[%clk 0:02:51]}  O-O {[%clk 0:02:51]} 9. Bd3 {[%clk 0:02:20]}  Nf5 {[%clk 0:02:39]} 10. Bc2 {[%clk 0:02:13]}  e6 {[%clk 0:02:33]} 11. O-O {[%clk 0:01:58]}  Nh4 {[%clk 0:02:27]} 12. Nxh4 {[%clk 0:01:32]}  Qxh4 {[%clk 0:02:26]} 13. f4 {[%clk 0:01:33]}  Bd7 {[%clk 0:02:17]} 14. Be3 {[%clk 0:01:26]}  f6 {[%clk 0:02:05]} 15. Ba4 {[%clk 0:00:56]}  fxe5 {[%clk 0:01:53]} 16. dxe5 {[%clk 0:00:57]}  Rad8 {[%clk 0:01:11]} 17. Ne2 {[%clk 0:00:41]}  Nxe5 {[%clk 0:01:02]} 18. Bf2 {[%clk 0:00:24]}  Bxa4 {[%clk 0:00:43]} 19. Bxh4 {[%clk 0:00:16]}  Bxd1 {[%clk 0:00:41]} 20. Raxd1 {[%clk 0:00:17]}  Nc4 {[%clk 0:00:34]} 21. Bxd8 {[%clk 0:00:17]}  Rxd8 {[%clk 0:00:33]} 22. b3 {[%clk 0:00:18]}  Ne3 {[%clk 0:00:33]} 23. Rc1 {[%clk 0:00:11]}  Nxf1 {[%clk 0:00:32]} 24. Kxf1 {[%clk 0:00:12]}  Rd7 {[%clk 0:00:32]} 25. Rc8+ {[%clk 0:00:11]}  Kf7 {[%clk 0:00:32]} 26. Nc1 {[%clk 0:00:12]}  Bd4 {[%clk 0:00:30]} 27. Nd3 {[%clk 0:00:12]}  Ke7 {[%clk 0:00:27]} 28. Ke2 {[%clk 0:00:12]}  Kd6 {[%clk 0:00:26]} 29. g4 {[%clk 0:00:10]}  Rc7 {[%clk 0:00:26]} 30. Rd8+ {[%clk 0:00:10]}  Ke7 {[%clk 0:00:26]} 31. Rb8 {[%clk 0:00:05]}  Kd6 {[%clk 0:00:22]} 32. Kd2 {[%clk 0:00:05]}  a6 {[%clk 0:00:19]} 33. Rd8+ {[%clk 0:00:04]}  Ke7 {[%clk 0:00:18]} 34. Rb8 {[%clk 0:00:05]}  Ba7 {[%clk 0:00:18]} 35. Rh8 {[%clk 0:00:05]}  Kd6 {[%clk 0:00:17]} 36. Ne5 {[%clk 0:00:05]}  Bd4 {[%clk 0:00:14]} 37. Rd8+ {[%clk 0:00:05]}  Ke7 {[%clk 0:00:13]} 38. Rh8 {[%clk 0:00:05]}  Kf6 {[%clk 0:00:11]} 39. g5+ {[%clk 0:00:04]}  Kf5 {[%clk 0:00:10]} 40. Rf8+ {[%clk 0:00:03]}  Ke4 {[%clk 0:00:10]} 41. Ng4 {[%clk 0:00:03]}  Rc3 {[%clk 0:00:08]} 42. Nf6+ {[%clk 0:00:02]}  Bxf6 {[%clk 0:00:03]} 43. gxf6 {[%clk 0:00:03]}  Rc7 {[%clk 0:00:03]} 44. f7 {[%clk 0:00:02]}  Kf5 {[%clk 0:00:03]} 45. Ke3 {[%clk 0:00:02]}  Kf6 {[%clk 0:00:03]} 46. Kd4 {[%clk 0:00:02]}  Rxf7 {[%clk 0:00:03]} 47. Rb8 {[%clk 0:00:02]}  Rc7 {[%clk 0:00:02]} 48. Rd8 {[%clk 0:00:02]}  Ke7 {[%clk 0:00:01]} 49. Rb8 {[%clk 0:00:03]}  Kf6 {[%clk 0:00:01]} 50. h4 {[%clk 0:00:04]}  h6 {[%clk 0:00:01]} 51. Rf8+ {[%clk 0:00:05]}  Kg7 {[%clk 0:00:01]} 52. Rb8 {[%clk 0:00:05]} 1-0


[Site "https://www.chess.com"]

[Event "Titled Tuesday Blitz February 15 Early 2022"]
[White "Jakubowski, Krzysztof"]
[Black "Jaracz, Pawel"]
[WhiteFideId "1112848"]
[BlackFideId "1102222"]
[WhiteElo "2578"]
[BlackElo "2797"]
[Result "1-0"]
[Round "07"]
[TimeControl "180+1"]
[Date "2022.02.15"]
[WhiteClock "0:00:01"]
[BlackClock "0:00:00"]

1. e4 {[%clk 0:03:00]}  e5 {[%clk 0:02:50]} 2. Nf3 {[%clk 0:03:00]}  Nc6 {[%clk 0:02:45]} 3. Bc4 {[%clk 0:02:59]}  Nf6 {[%clk 0:02:43]} 4. Ng5 {[%clk 0:02:58]}  d5 {[%clk 0:02:42]} 5. exd5 {[%clk 0:02:58]}  Na5 {[%clk 0:02:43]} 6. Bb5+ {[%clk 0:02:58]}  c6 {[%clk 0:02:43]} 7. dxc6 {[%clk 0:02:58]}  bxc6 {[%clk 0:02:43]} 8. Bd3 {[%clk 0:02:58]}  Nd5 {[%clk 0:02:39]} 9. h4 {[%clk 0:02:55]}  Be7 {[%clk 0:02:37]} 10. Nf3 {[%clk 0:02:23]}  Nf4 {[%clk 0:02:27]} 11. Bf1 {[%clk 0:02:22]}  e4 {[%clk 0:02:21]} 12. d4 {[%clk 0:02:18]}  Nd5 {[%clk 0:01:57]} 13. Ng5 {[%clk 0:02:11]}  O-O {[%clk 0:01:54]} 14. a3 {[%clk 0:01:58]}  f5 {[%clk 0:01:36]} 15. b4 {[%clk 0:01:43]}  Nb7 {[%clk 0:01:34]} 16. c4 {[%clk 0:01:43]}  Nf6 {[%clk 0:01:30]} 17. Nc3 {[%clk 0:01:39]}  a5 {[%clk 0:01:30]} 18. b5 {[%clk 0:01:38]}  c5 {[%clk 0:01:28]} 19. d5 {[%clk 0:01:32]}  Bd6 {[%clk 0:01:28]} 20. g3 {[%clk 0:01:29]}  Be5 {[%clk 0:01:28]} 21. Qc2 {[%clk 0:01:24]}  h6 {[%clk 0:01:12]} 22. Nh3 {[%clk 0:01:23]}  Ng4 {[%clk 0:01:08]} 23. Be2 {[%clk 0:01:20]}  Qf6 {[%clk 0:01:07]} 24. Bd2 {[%clk 0:01:17]}  e3 {[%clk 0:01:05]} 25. fxe3 {[%clk 0:01:15]}  Bxg3+ {[%clk 0:01:05]} 26. Kd1 {[%clk 0:01:13]}  Nd6 {[%clk 0:01:04]} 27. Rb1 {[%clk 0:01:04]}  f4 {[%clk 0:01:01]} 28. Rf1 {[%clk 0:00:46]}  Nh2 {[%clk 0:00:52]} 29. Rxf4 {[%clk 0:00:43]}  Bxf4 {[%clk 0:00:38]} 30. Nxf4 {[%clk 0:00:43]}  Bf5 {[%clk 0:00:38]} 31. Bd3 {[%clk 0:00:41]}  Nf3 {[%clk 0:00:27]} 32. Bxf5 {[%clk 0:00:35]}  Nxf5 {[%clk 0:00:27]} 33. Qe4 {[%clk 0:00:21]}  N5xh4 {[%clk 0:00:20]} 34. Ne6 {[%clk 0:00:17]}  Nxd2 {[%clk 0:00:19]} 35. Kxd2 {[%clk 0:00:18]}  Qf2+ {[%clk 0:00:18]} 36. Ne2 {[%clk 0:00:18]}  Nf3+ {[%clk 0:00:18]} 37. Kd3 {[%clk 0:00:18]}  Ng5 {[%clk 0:00:16]} 38. Qe5 {[%clk 0:00:15]}  Rf6 {[%clk 0:00:14]} 39. b6 {[%clk 0:00:14]}  Nf3 {[%clk 0:00:11]} 40. Qe4 {[%clk 0:00:12]}  Ne1+ {[%clk 0:00:12]} 41. Kd2 {[%clk 0:00:11]}  Nf3+ {[%clk 0:00:12]} 42. Kd3 {[%clk 0:00:11]}  Rb8 {[%clk 0:00:12]} 43. Rb2 {[%clk 0:00:07]}  Ne1+ {[%clk 0:00:08]} 44. Kc3 {[%clk 0:00:06]}  Ng2 {[%clk 0:00:07]} 45. Qg4 {[%clk 0:00:06]}  Qxe3+ {[%clk 0:00:05]} 46. Kc2 {[%clk 0:00:05]}  Rf7 {[%clk 0:00:04]} 47. Nc3 {[%clk 0:00:04]}  Ne1+ {[%clk 0:00:03]} 48. Kb3 {[%clk 0:00:04]}  Nd3 {[%clk 0:00:04]} 49. Re2 {[%clk 0:00:02]}  a4+ {[%clk 0:00:04]} 50. Kxa4 {[%clk 0:00:02]}  Qc1 {[%clk 0:00:03]} 51. Kb5 {[%clk 0:00:01]}  Qxc3 {[%clk 0:00:02]} 52. Nxg7 {[%clk 0:00:01]}  Qb3+ {[%clk 0:00:00]} 53. Kc6 {[%clk 0:00:01]} 1-0


[Site "https://www.chess.com"]

[Event "Titled Tuesday Blitz February 15 Early 2022"]
[White "Janaszak, Dawid"]
[Black "Guseva, Marina"]
[WhiteFideId "1119206"]
[BlackFideId "4149351"]
[WhiteElo "2199"]
[BlackElo "2232"]
[Result "1-0"]
[Round "07"]
[TimeControl "180+1"]
[Date "2022.02.15"]
[WhiteClock "0:00:12"]
[BlackClock "0:00:02"]

1. e4 {[%clk 0:03:00]}  c5 {[%clk 0:02:58]} 2. Nc3 {[%clk 0:03:00]}  d6 {[%clk 0:02:57]} 3. f4 {[%clk 0:03:00]}  g6 {[%clk 0:02:57]} 4. Nf3 {[%clk 0:03:01]}  Bg7 {[%clk 0:02:57]} 5. Bc4 {[%clk 0:03:01]}  Nc6 {[%clk 0:02:56]} 6. O-O {[%clk 0:03:00]}  e6 {[%clk 0:02:55]} 7. d4 {[%clk 0:03:00]}  cxd4 {[%clk 0:02:47]} 8. Nb5 {[%clk 0:02:59]}  Nge7 {[%clk 0:02:45]} 9. Bb3 {[%clk 0:02:59]}  O-O {[%clk 0:02:44]} 10. Nbxd4 {[%clk 0:02:59]}  Nxd4 {[%clk 0:02:43]} 11. Nxd4 {[%clk 0:03:00]}  b6 {[%clk 0:02:39]} 12. c3 {[%clk 0:02:43]}  Bb7 {[%clk 0:02:36]} 13. Qe1 {[%clk 0:02:42]}  Nc6 {[%clk 0:02:34]} 14. Be3 {[%clk 0:02:39]}  Na5 {[%clk 0:02:30]} 15. Bc2 {[%clk 0:02:37]}  Nc4 {[%clk 0:02:29]} 16. Bc1 {[%clk 0:02:34]}  e5 {[%clk 0:02:22]} 17. fxe5 {[%clk 0:02:22]}  dxe5 {[%clk 0:02:21]} 18. Nf3 {[%clk 0:02:19]}  Qc7 {[%clk 0:01:30]} 19. Kh1 {[%clk 0:02:04]}  Rac8 {[%clk 0:01:19]} 20. Qh4 {[%clk 0:02:04]}  f6 {[%clk 0:01:16]} 21. b3 {[%clk 0:01:44]}  Nd6 {[%clk 0:01:15]} 22. c4 {[%clk 0:01:44]}  b5 {[%clk 0:01:15]} 23. Ba3 {[%clk 0:01:36]}  bxc4 {[%clk 0:01:14]} 24. Rad1 {[%clk 0:01:37]}  Rfd8 {[%clk 0:01:12]} 25. Qg4 {[%clk 0:01:30]}  Nb5 {[%clk 0:00:58]} 26. Bb4 {[%clk 0:01:16]}  a5 {[%clk 0:00:51]} 27. Bd2 {[%clk 0:01:02]}  Na3 {[%clk 0:00:31]} 28. Rc1 {[%clk 0:00:51]}  Nxc2 {[%clk 0:00:23]} 29. Rxc2 {[%clk 0:00:52]}  Qd7 {[%clk 0:00:20]} 30. Qh4 {[%clk 0:00:37]}  cxb3 {[%clk 0:00:18]} 31. Rxc8 {[%clk 0:00:38]}  Rxc8 {[%clk 0:00:18]} 32. axb3 {[%clk 0:00:39]}  Rc2 {[%clk 0:00:16]} 33. Bxa5 {[%clk 0:00:38]}  Qb5 {[%clk 0:00:15]} 34. Ra1 {[%clk 0:00:37]}  Qxb3 {[%clk 0:00:11]} 35. Qg4 {[%clk 0:00:35]}  Bc8 {[%clk 0:00:08]} 36. Qg3 {[%clk 0:00:35]}  Qc4 {[%clk 0:00:07]} 37. Bd2 {[%clk 0:00:28]}  Qxe4 {[%clk 0:00:06]} 38. h3 {[%clk 0:00:27]}  Qc6 {[%clk 0:00:06]} 39. Be3 {[%clk 0:00:20]}  Bb7 {[%clk 0:00:06]} 40. Rd1 {[%clk 0:00:18]}  Re2 {[%clk 0:00:04]} 41. Bg1 {[%clk 0:00:14]}  Qc8 {[%clk 0:00:02]} 42. Qh4 {[%clk 0:00:12]} 1-0


[Site "https://www.chess.com"]